[Event "*** Titled Tuesday Blitz"]
[Site "Chess.com"]
[Date "2019.09.03"]
[Round "2"]
[White "chesstatour"]
[Black "laboratorio25"]
[Result "0-1"]
[WhiteElo "2026"]
[BlackElo "2399"]
[TimeControl "180+2"]
[EndTime "15:24:06 PDT"]
[Termination "laboratorio25 won by resignation"]

1. c4 {[%clk 0:03:01.9]} 1... Nf6 {[%clk 0:02:54]} 2. Nc3 {[%clk 0:03:03.8]}
2... e5 {[%clk 0:02:54.4]} 3. Nf3 {[%clk 0:02:59.6]} 3... Nc6 {[%clk 0:02:52.3]}
4. d4 {[%clk 0:03:00.8]} 4... exd4 {[%clk 0:02:51.7]} 5. Nxd4 {[%clk 0:03:00.4]}
5... Nxd4 {[%clk 0:02:41.8]} 6. Qxd4 {[%clk 0:03:00.6]} 6... Be7 {[%clk
0:02:39.3]} 7. g3 {[%clk 0:03:00.3]} 7... O-O {[%clk 0:02:35.6]} 8. Bg2 {[%clk
0:03:01]} 8... d6 {[%clk 0:02:21.4]} 9. O-O {[%clk 0:02:59.2]} 9... Re8 {[%clk
0:02:17.7]} 10. b3 {[%clk 0:02:46.7]} 10... Nd7 {[%clk 0:02:17.6]} 11. Nd5
{[%clk 0:02:39]} 11... Bf6 {[%clk 0:02:14.6]} 12. Nxf6+ {[%clk 0:02:37.9]} 12...
Qxf6 {[%clk 0:02:15.8]} 13. Qxf6 {[%clk 0:02:27.7]} 13... Nxf6 {[%clk
0:02:17.7]} 14. e3 {[%clk 0:02:24.3]} 14... a5 {[%clk 0:02:09.6]} 15. Bb2 {[%clk
0:02:23.6]} 15... Ne4 {[%clk 0:02:10.1]} 16. Rfd1 {[%clk 0:01:07]} 16... Bf5
{[%clk 0:01:59]} 17. f3 {[%clk 0:01:00.4]} 17... Nc5 {[%clk 0:01:59]} 18. e4
{[%clk 0:01:01.4]} 18... Be6 {[%clk 0:01:38.8]} 19. Rac1 {[%clk 0:01:00.3]}
19... f6 {[%clk 0:01:30.1]} 20. Bd4 {[%clk 0:00:48.6]} 20... b6 {[%clk 0:01:27]}
21. Kf2 {[%clk 0:00:38.4]} 21... Bf7 {[%clk 0:01:19]} 22. Rd2 {[%clk 0:00:20.3]}
22... Re7 {[%clk 0:01:13.5]} 23. Rcd1 {[%clk 0:00:16.3]} 23... Rae8 {[%clk
0:01:09.1]} 24. Rb2 {[%clk 0:00:09.3]} 24... Na6 {[%clk 0:01:09.7]} 25. a3
{[%clk 0:00:08.9]} 25... Rb8 {[%clk 0:00:58.1]} 26. b4 {[%clk 0:00:09.3]} 26...
axb4 {[%clk 0:00:55.7]} 27. axb4 {[%clk 0:00:09.7]} 27... Bxc4 {[%clk 0:00:56]}
28. b5 {[%clk 0:00:09.3]} 28... Nc5 {[%clk 0:00:56.6]} 29. Bxc5 {[%clk
0:00:05.4]} 29... bxc5 {[%clk 0:00:57.1]} 30. Rdb1 {[%clk 0:00:05.8]} 30... Rb6
{[%clk 0:00:57.8]} 31. Bf1 {[%clk 0:00:06]} 31... Bxf1 {[%clk 0:00:58.4]} 32.
Kxf1 {[%clk 0:00:07.9]} 32... Re8 {[%clk 0:00:59.4]} 33. Ke2 {[%clk 0:00:08.6]}
33... Reb8 {[%clk 0:01:00.5]} 34. Kd3 {[%clk 0:00:09.3]} 34... Ra8 {[%clk
0:00:59.8]} 35. Kc4 {[%clk 0:00:08.2]} 35... Kf7 {[%clk 0:00:59.4]} 36. f4
{[%clk 0:00:08.2]} 36... Ke6 {[%clk 0:00:58.6]} 37. Re1 {[%clk 0:00:08.4]} 37...
Ra4+ {[%clk 0:00:59.3]} 38. Kc3 {[%clk 0:00:09.2]} 38... Ra3+ {[%clk 0:00:58.8]}
39. Kc4 {[%clk 0:00:08.9]} 39... Rb8 {[%clk 0:00:57.3]} 40. e5 {[%clk
0:00:08.8]} 40... Ra4+ {[%clk 0:00:55.4]} 41. Kc3 {[%clk 0:00:08]} 41... fxe5
{[%clk 0:00:55.2]} 42. fxe5 {[%clk 0:00:08.8]} 42... d5 {[%clk 0:00:56.5]} 43.
Kc2 {[%clk 0:00:03.9]} 43... Rb4 {[%clk 0:00:53]} 44. Rxb4 {[%clk 0:00:04]}
44... cxb4 {[%clk 0:00:54.9]} 45. Kb3 {[%clk 0:00:04.8]} 45... Rxb5 {[%clk
0:00:56]} 46. Rf1 {[%clk 0:00:04.1]} 46... c5 {[%clk 0:00:53.8]} 47. Rf8 {[%clk
0:00:04.4]} 47... c4+ {[%clk 0:00:54.2]} 48. Kb2 {[%clk 0:00:05.7]} 48... Rb7
{[%clk 0:00:46.8]} 49. Re8+ {[%clk 0:00:05.1]} 49... Re7 {[%clk 0:00:47.5]} 50.
Rb8 {[%clk 0:00:06.1]} 50... b3 {[%clk 0:00:48.4]} 51. Kc3 {[%clk 0:00:04.9]}
51... Kxe5 {[%clk 0:00:49.8]} 52. Rh8 {[%clk 0:00:04.7]} 52... g6 {[%clk
0:00:49.2]} 53. h4 {[%clk 0:00:04.8]} 53... Rb7 {[%clk 0:00:49.9]} 54. Re8+
{[%clk 0:00:04.9]} 54... Kf5 {[%clk 0:00:50.6]} 55. Rd8 {[%clk 0:00:04.6]} 55...
b2 {[%clk 0:00:50.5]} 56. Rxd5+ {[%clk 0:00:04.3]} 56... Ke6 {[%clk 0:00:51.8]}
0-1

[Event "*** Titled Tuesday Blitz"]
[Site "Chess.com"]
[Date "2019.09.03"]
[Round "2"]
[White "Walter_White_Poland"]
[Black "bubacik"]
[Result "0-1"]
[WhiteElo "2306"]
[BlackElo "2706"]
[TimeControl "180+2"]
[EndTime "15:24:12 PDT"]
[Termination "bubacik won by resignation"]

1. Nf3 {[%clk 0:02:50.4]} 1... Nf6 {[%clk 0:02:52.4]} 2. c4 {[%clk 0:02:49.8]}
2... e6 {[%clk 0:02:52.1]} 3. g3 {[%clk 0:02:50.1]} 3... b6 {[%clk 0:02:52.8]}
4. Bg2 {[%clk 0:02:50.8]} 4... Bb7 {[%clk 0:02:54.4]} 5. O-O {[%clk 0:02:45.7]}
5... Be7 {[%clk 0:02:53.5]} 6. b3 {[%clk 0:02:46.6]} 6... O-O {[%clk 0:02:52.3]}
7. Bb2 {[%clk 0:02:47.5]} 7... d5 {[%clk 0:02:48.3]} 8. e3 {[%clk 0:02:46.9]}
8... a5 {[%clk 0:02:46.9]} 9. Nc3 {[%clk 0:02:33.4]} 9... Ne4 {[%clk 0:02:23]}
10. d3 {[%clk 0:02:11.3]} 10... Nxc3 {[%clk 0:02:14.4]} 11. Bxc3 {[%clk
0:02:12.4]} 11... a4 {[%clk 0:02:15.8]} 12. Qc2 {[%clk 0:01:53.6]} 12... Na6
{[%clk 0:02:09.7]} 13. Rfc1 {[%clk 0:01:31.4]} 13... dxc4 {[%clk 0:01:44.7]} 14.
dxc4 {[%clk 0:01:09.6]} 14... Nb4 {[%clk 0:01:44.5]} 15. Bxb4 {[%clk 0:00:36.9]}
15... Bxb4 {[%clk 0:01:22.6]} 16. Ng5 {[%clk 0:00:33.9]} 16... Qxg5 {[%clk
0:01:19.6]} 17. Bxb7 {[%clk 0:00:34.3]} 17... Rad8 {[%clk 0:01:17.9]} 18. Rd1
{[%clk 0:00:34]} 18... a3 {[%clk 0:01:02.8]} 19. h4 {[%clk 0:00:32.4]} 19... Qe5
{[%clk 0:01:01.5]} 20. Be4 {[%clk 0:00:30.7]} 20... g6 {[%clk 0:00:54.8]} 21.
Kg2 {[%clk 0:00:26.7]} 21... Kg7 {[%clk 0:00:52.2]} 22. Rab1 {[%clk 0:00:18.6]}
22... h5 {[%clk 0:00:44.8]} 23. Bf3 {[%clk 0:00:18.3]} 23... Rxd1 {[%clk
0:00:35.7]} 24. Rxd1 {[%clk 0:00:18]} 24... Qb2 {[%clk 0:00:36.9]} 25. Be4
{[%clk 0:00:12]} 25... Bd6 {[%clk 0:00:23.4]} 26. Rb1 {[%clk 0:00:11.8]} 26...
Qe5 {[%clk 0:00:23.2]} 27. Bf3 {[%clk 0:00:11.6]} 27... Rh8 {[%clk 0:00:21.1]}
28. b4 {[%clk 0:00:11.8]} 28... g5 {[%clk 0:00:21.9]} 29. hxg5 {[%clk
0:00:11.3]} 29... h4 {[%clk 0:00:23.3]} 30. Rh1 {[%clk 0:00:11.9]} 30... hxg3
{[%clk 0:00:22.1]} 31. Rxh8 {[%clk 0:00:12.7]} 31... Kxh8 {[%clk 0:00:24]} 32.
Qe4 {[%clk 0:00:13.2]} 32... Qxg5 {[%clk 0:00:24.9]} 33. Qg4 {[%clk 0:00:12.5]}
33... Qxg4 {[%clk 0:00:25.7]} 34. Bxg4 {[%clk 0:00:13.2]} 34... gxf2 {[%clk
0:00:24.9]} 35. c5 {[%clk 0:00:12.9]} 35... bxc5 {[%clk 0:00:19.6]} 36. bxc5
{[%clk 0:00:14.1]} 36... Bxc5 {[%clk 0:00:21.5]} 37. Kxf2 {[%clk 0:00:15.3]}
37... f5 {[%clk 0:00:21.9]} 38. Bh5 {[%clk 0:00:14.9]} 38... f4 {[%clk
0:00:22.4]} 39. Kf3 {[%clk 0:00:15.1]} 39... Bxe3 {[%clk 0:00:22.9]} 40. Bf7
{[%clk 0:00:14.5]} 40... e5 {[%clk 0:00:24]} 41. Bd5 {[%clk 0:00:13.8]} 41...
Kg7 {[%clk 0:00:23.7]} 42. Ke4 {[%clk 0:00:14.8]} 42... Kf6 {[%clk 0:00:25.2]}
43. Bc4 {[%clk 0:00:15.7]} 43... Bd4 {[%clk 0:00:25]} 44. Be2 {[%clk 0:00:16.5]}
44... Ke6 {[%clk 0:00:26]} 45. Bf3 {[%clk 0:00:16.6]} 45... Kd6 {[%clk
0:00:27.2]} 46. Kd3 {[%clk 0:00:17.6]} 46... Kc5 {[%clk 0:00:28.8]} 47. Bg4
{[%clk 0:00:17.5]} 47... Kb4 {[%clk 0:00:29.5]} 48. Bf3 {[%clk 0:00:17.2]} 48...
c5 {[%clk 0:00:30.9]} 49. Bd5 {[%clk 0:00:18.2]} 49... Kb5 {[%clk 0:00:29.4]}
50. Bc4+ {[%clk 0:00:18.4]} 50... Ka4 {[%clk 0:00:30]} 51. Bd5 {[%clk
0:00:18.9]} 51... Kb4 {[%clk 0:00:31.6]} 52. Kc2 {[%clk 0:00:15.9]} 52... c4
{[%clk 0:00:30.9]} 53. Be4 {[%clk 0:00:16.9]} 53... Kc5 {[%clk 0:00:31.8]} 54.
Bf3 {[%clk 0:00:17.4]} 54... Bb2 {[%clk 0:00:32.8]} 55. Be4 {[%clk 0:00:16.4]}
55... Kd4 {[%clk 0:00:34.7]} 56. Bc6 {[%clk 0:00:17.2]} 56... Ke3 {[%clk
0:00:35.8]} 0-1

[Event "*** Titled Tuesday Blitz"]
[Site "Chess.com"]
[Date "2019.09.03"]
[Round "2"]
[White "nocnypako"]
[Black "platy3"]
[Result "0-1"]
[WhiteElo "2588"]
[BlackElo "2877"]
[TimeControl "180+2"]
[EndTime "15:24:15 PDT"]
[Termination "platy3 won on time"]

1. d4 {[%clk 0:03:01.9]} 1... Nf6 {[%clk 0:02:42.2]} 2. Nf3 {[%clk 0:02:52.1]}
2... b6 {[%clk 0:02:41.3]} 3. Bg5 {[%clk 0:02:51.8]} 3... Bb7 {[%clk 0:02:42.1]}
4. e3 {[%clk 0:02:51.3]} 4... e6 {[%clk 0:02:43.2]} 5. Bd3 {[%clk 0:02:51.4]}
5... h6 {[%clk 0:02:43.5]} 6. Bh4 {[%clk 0:02:50.9]} 6... Be7 {[%clk 0:02:41.8]}
7. O-O {[%clk 0:02:50.3]} 7... O-O {[%clk 0:02:43.2]} 8. c3 {[%clk 0:02:41.2]}
8... c5 {[%clk 0:02:44.3]} 9. Nbd2 {[%clk 0:02:38.6]} 9... d5 {[%clk 0:02:45]}
10. Qe2 {[%clk 0:02:32.8]} 10... Nbd7 {[%clk 0:02:39.1]} 11. Ba6 {[%clk
0:02:33.2]} 11... Qc8 {[%clk 0:02:38.4]} 12. Bxb7 {[%clk 0:02:32.3]} 12... Qxb7
{[%clk 0:02:40.3]} 13. Ne5 {[%clk 0:02:24.3]} 13... Nxe5 {[%clk 0:02:23.6]} 14.
dxe5 {[%clk 0:02:26.2]} 14... Ne8 {[%clk 0:02:25]} 15. Bg3 {[%clk 0:02:02]}
15... Nc7 {[%clk 0:02:13.5]} 16. a4 {[%clk 0:02:02.5]} 16... a6 {[%clk
0:02:12.1]} 17. Rfd1 {[%clk 0:01:52.8]} 17... b5 {[%clk 0:02:13.4]} 18. axb5
{[%clk 0:01:48.7]} 18... axb5 {[%clk 0:02:14.1]} 19. Nb3 {[%clk 0:01:45.7]}
19... Ra4 {[%clk 0:02:08.5]} 20. Qc2 {[%clk 0:01:39.6]} 20... Rfa8 {[%clk
0:02:07.9]} 21. h3 {[%clk 0:01:37]} 21... R8a7 {[%clk 0:01:58.5]} 22. Rxa4
{[%clk 0:01:37.1]} 22... bxa4 {[%clk 0:01:58]} 23. Nd2 {[%clk 0:01:37.9]} 23...
c4 {[%clk 0:01:50.8]} 24. Ra1 {[%clk 0:01:35.9]} 24... Qa8 {[%clk 0:01:40.3]}
25. e4 {[%clk 0:01:26.4]} 25... a3 {[%clk 0:01:37.5]} 26. bxa3 {[%clk 0:01:26]}
26... Rxa3 {[%clk 0:01:37.6]} 27. Rxa3 {[%clk 0:01:25.7]} 27... Qxa3 {[%clk
0:01:39.5]} 28. exd5 {[%clk 0:01:22.2]} 28... exd5 {[%clk 0:01:38.8]} 29. Qf5
{[%clk 0:01:07.1]} 29... Qc1+ {[%clk 0:01:32.2]} 30. Kh2 {[%clk 0:01:04.6]}
30... Qxd2 {[%clk 0:01:19.9]} 31. Qc8+ {[%clk 0:01:04.3]} 31... Bf8 {[%clk
0:01:21.4]} 32. Qxc7 {[%clk 0:00:57.3]} 32... Qxc3 {[%clk 0:01:20.4]} 33. Qd8
{[%clk 0:00:40.8]} 33... Qd4 {[%clk 0:01:11.3]} 34. Qd7 {[%clk 0:00:29.5]} 34...
Qe4 {[%clk 0:00:31.4]} 35. f3 {[%clk 0:00:28.4]} 35... Qe3 {[%clk 0:00:23.5]}
36. Qxd5 {[%clk 0:00:20.8]} 36... Bc5 {[%clk 0:00:24.3]} 37. h4 {[%clk
0:00:15.9]} 37... c3 {[%clk 0:00:19.9]} 38. Qc4 {[%clk 0:00:16.6]} 38... Qd4
{[%clk 0:00:12.7]} 39. Qb3 {[%clk 0:00:10.8]} 39... h5 {[%clk 0:00:10.8]} 40.
Kh3 {[%clk 0:00:10.1]} 40... Qd7+ {[%clk 0:00:11.1]} 41. Kh2 {[%clk 0:00:10.3]}
41... Qd4 {[%clk 0:00:10.4]} 42. Kh3 {[%clk 0:00:10.9]} 42... Be7 {[%clk
0:00:07.1]} 43. e6 {[%clk 0:00:07.5]} 43... f5 {[%clk 0:00:08.2]} 44. Qb8+
{[%clk 0:00:06.9]} 44... Kh7 {[%clk 0:00:09]} 45. Qc8 {[%clk 0:00:07.7]} 45...
f4 {[%clk 0:00:09.2]} 46. Be1 {[%clk 0:00:08]} 46... Qg1 {[%clk 0:00:09.5]} 47.
Bg3 {[%clk 0:00:07.5]} 47... fxg3 {[%clk 0:00:09.4]} 0-1

[Event "*** Titled Tuesday Blitz"]
[Site "Chess.com"]
[Date "2019.09.03"]
[Round "2"]
[White "2165149677570"]
[Black "ulises2013"]
[Result "1-0"]
[WhiteElo "2316"]
[BlackElo "2494"]
[TimeControl "180+2"]
[EndTime "15:24:20 PDT"]
[Termination "2165149677570 won by checkmate"]

1. e4 {[%clk 0:03:01.9]} 1... g6 {[%clk 0:03:01.9]} 2. d4 {[%clk 0:03:02.2]}
2... Bg7 {[%clk 0:03:03]} 3. c4 {[%clk 0:03:03.3]} 3... c5 {[%clk 0:03:03.3]} 4.
d5 {[%clk 0:03:04.3]} 4... d6 {[%clk 0:03:04.6]} 5. Nc3 {[%clk 0:03:05.6]} 5...
e5 {[%clk 0:03:05.9]} 6. Be3 {[%clk 0:03:05.1]} 6... Ne7 {[%clk 0:03:07.2]} 7.
h4 {[%clk 0:03:02.6]} 7... f5 {[%clk 0:03:06.9]} 8. h5 {[%clk 0:02:50.1]} 8...
f4 {[%clk 0:03:07.7]} 9. Bd2 {[%clk 0:02:34.6]} 9... Nd7 {[%clk 0:03:07.3]} 10.
Nf3 {[%clk 0:02:22.6]} 10... Nf6 {[%clk 0:03:00.4]} 11. h6 {[%clk 0:02:19.7]}
11... Bf8 {[%clk 0:03:01.4]} 12. g3 {[%clk 0:02:08.2]} 12... fxg3 {[%clk
0:02:56.8]} 13. fxg3 {[%clk 0:02:10.1]} 13... Bg4 {[%clk 0:02:55.1]} 14. Be2
{[%clk 0:02:10.9]} 14... Bxf3 {[%clk 0:02:56.2]} 15. Bxf3 {[%clk 0:02:12.1]}
15... Qd7 {[%clk 0:02:43.8]} 16. Bg5 {[%clk 0:02:06.7]} 16... Neg8 {[%clk
0:02:45]} 17. Ke2 {[%clk 0:01:33.1]} 17... Be7 {[%clk 0:02:44.2]} 18. Qd2 {[%clk
0:01:25.3]} 18... O-O-O {[%clk 0:02:42.9]} 19. Rhb1 {[%clk 0:01:20.3]} 19... Kb8
{[%clk 0:02:42]} 20. b4 {[%clk 0:01:21]} 20... cxb4 {[%clk 0:02:42.8]} 21. Rxb4
{[%clk 0:01:22]} 21... Rc8 {[%clk 0:02:44.3]} 22. Rab1 {[%clk 0:01:06.7]} 22...
b6 {[%clk 0:02:39.7]} 23. Qe3 {[%clk 0:00:52.3]} 23... Bd8 {[%clk 0:02:25.1]}
24. Na4 {[%clk 0:00:35.8]} 24... Rc5 {[%clk 0:01:27]} 25. Nxc5 {[%clk
0:00:34.1]} 25... dxc5 {[%clk 0:01:28.9]} 26. Qxc5 {[%clk 0:00:25.7]} 26... Ka8
{[%clk 0:01:18.7]} 27. Qf8 {[%clk 0:00:19.8]} 27... Qe7 {[%clk 0:01:14.4]} 28.
Qg7 {[%clk 0:00:17.7]} 28... Qc5 {[%clk 0:00:58.4]} 29. Be3 {[%clk 0:00:16.4]}
29... Qa5 {[%clk 0:00:56.9]} 30. a4 {[%clk 0:00:12.4]} 30... Ne8 {[%clk
0:00:47.5]} 31. Qxh8 {[%clk 0:00:12.1]} 31... Ngf6 {[%clk 0:00:49.4]} 32. c5
{[%clk 0:00:12]} 32... Qa6+ {[%clk 0:00:49.3]} 33. Kf2 {[%clk 0:00:12.7]} 33...
Qd3 {[%clk 0:00:45.9]} 34. cxb6 {[%clk 0:00:13.6]} 34... axb6 {[%clk 0:00:46.6]}
35. Bxb6 {[%clk 0:00:15]} 35... Qd2+ {[%clk 0:00:46.2]} 36. Kg1 {[%clk
0:00:14.5]} 36... Be7 {[%clk 0:00:38.6]} 37. Rb5 {[%clk 0:00:13.5]} 37... Qa2
{[%clk 0:00:32.3]} 38. Ra5+ {[%clk 0:00:14.6]} 38... Kb7 {[%clk 0:00:33.3]} 39.
Rab5 {[%clk 0:00:08.9]} 39... Kc8 {[%clk 0:00:33.2]} 40. Rc1+ {[%clk 0:00:09.1]}
40... Kd7 {[%clk 0:00:33.8]} 41. Bg2 {[%clk 0:00:09.4]} 41... Ng4 {[%clk
0:00:33.6]} 42. Qxh7 {[%clk 0:00:06.9]} 42... Nef6 {[%clk 0:00:31.1]} 43. Qxg6
{[%clk 0:00:07.9]} 43... Qa3 {[%clk 0:00:27.8]} 44. Qf5+ {[%clk 0:00:09.1]}
44... Ke8 {[%clk 0:00:27.5]} 45. Rc8+ {[%clk 0:00:10.4]} 45... Kf7 {[%clk
0:00:28.9]} 46. Qe6+ {[%clk 0:00:11]} 46... Kg6 {[%clk 0:00:30.1]} 47. Rg8+
{[%clk 0:00:11.2]} 47... Kxh6 {[%clk 0:00:30.8]} 48. Rb1 {[%clk 0:00:08.3]}
48... Qxg3 {[%clk 0:00:30.8]} 49. Qxe7 {[%clk 0:00:08.8]} 49... Qh2+ {[%clk
0:00:30.7]} 50. Kf1 {[%clk 0:00:10.2]} 50... Qf4+ {[%clk 0:00:31.8]} 51. Ke2
{[%clk 0:00:09.7]} 51... Kh5 {[%clk 0:00:27.7]} 52. Rh1+ {[%clk 0:00:10.3]}
52... Nh2 {[%clk 0:00:28.4]} 53. Rh8+ {[%clk 0:00:11.6]} 53... Kg4 {[%clk
0:00:28.7]} 54. R1xh2 {[%clk 0:00:12.5]} 54... Nxe4 {[%clk 0:00:23.8]} 55. Qe6+
{[%clk 0:00:12.7]} 55... Kg3 {[%clk 0:00:24.4]} 56. R8h3# {[%clk 0:00:12.8]} 1-0

[Event "*** Titled Tuesday Blitz"]
[Site "Chess.com"]
[Date "2019.09.03"]
[Round "2"]
[White "abubakrtagelsir"]
[Black "GasconJR"]
[Result "0-1"]
[WhiteElo "2252"]
[BlackElo "2487"]
[TimeControl "180+2"]
[EndTime "15:24:36 PDT"]
[Termination "GasconJR won by checkmate"]

1. e4 {[%clk 0:02:59.3]} 1... Nc6 {[%clk 0:03:00.4]} 2. Nf3 {[%clk 0:02:57.2]}
2... d6 {[%clk 0:03:01.5]} 3. Bb5 {[%clk 0:02:56.4]} 3... Nf6 {[%clk 0:03:00.9]}
4. Nc3 {[%clk 0:02:53.2]} 4... a6 {[%clk 0:03:02.2]} 5. Bxc6+ {[%clk 0:02:53.2]}
5... bxc6 {[%clk 0:03:04.1]} 6. O-O {[%clk 0:02:51.9]} 6... c5 {[%clk
0:02:51.6]} 7. d3 {[%clk 0:02:48.6]} 7... e5 {[%clk 0:02:52.2]} 8. h3 {[%clk
0:02:48.6]} 8... g6 {[%clk 0:02:52.7]} 9. Bg5 {[%clk 0:02:47.6]} 9... h6 {[%clk
0:02:51.7]} 10. Bh4 {[%clk 0:02:46.2]} 10... Bg7 {[%clk 0:02:52.5]} 11. Qd2
{[%clk 0:02:44.2]} 11... g5 {[%clk 0:02:46.1]} 12. Bg3 {[%clk 0:02:43.8]} 12...
Nh5 {[%clk 0:02:46.1]} 13. Ne2 {[%clk 0:02:41.2]} 13... Nf4 {[%clk 0:02:44.5]}
14. Bh2 {[%clk 0:02:40.5]} 14... Be6 {[%clk 0:02:34.5]} 15. Ng3 {[%clk
0:02:40.5]} 15... Qd7 {[%clk 0:02:33.9]} 16. Ne1 {[%clk 0:02:21.8]} 16... h5
{[%clk 0:02:31.9]} 17. c3 {[%clk 0:02:08.8]} 17... Rb8 {[%clk 0:02:05.6]} 18. b4
{[%clk 0:02:07.2]} 18... Bh6 {[%clk 0:01:26.4]} 19. d4 {[%clk 0:01:57.2]} 19...
g4 {[%clk 0:01:25.6]} 20. Qc2 {[%clk 0:01:20.5]} 20... gxh3 {[%clk 0:01:21.5]}
21. Nf5 {[%clk 0:00:46.3]} 21... Bxf5 {[%clk 0:01:20.4]} 22. exf5 {[%clk
0:00:45.3]} 22... hxg2 {[%clk 0:01:19.6]} 23. Nxg2 {[%clk 0:00:45.6]} 23... Nxg2
{[%clk 0:01:20]} 24. Kxg2 {[%clk 0:00:44.2]} 24... Qc6+ {[%clk 0:01:19]} 25. f3
{[%clk 0:00:41.4]} 25... cxd4 {[%clk 0:01:19.9]} 26. c4 {[%clk 0:00:31.3]} 26...
Be3 {[%clk 0:01:16]} 27. Rab1 {[%clk 0:00:18.5]} 27... h4 {[%clk 0:01:12.1]} 28.
Kh1 {[%clk 0:00:17]} 28... Rg8 {[%clk 0:01:09.3]} 29. f6 {[%clk 0:00:16.6]}
29... Qd7 {[%clk 0:01:04.1]} 30. Qh7 {[%clk 0:00:16.8]} 30... Rf8 {[%clk
0:00:54.9]} 31. c5 {[%clk 0:00:16.4]} 31... Qe6 {[%clk 0:00:34]} 32. cxd6 {[%clk
0:00:16.7]} 32... cxd6 {[%clk 0:00:34.7]} 33. Qe4 {[%clk 0:00:12.4]} 33... Kd7
{[%clk 0:00:27.1]} 34. b5 {[%clk 0:00:10.7]} 34... axb5 {[%clk 0:00:26.6]} 35.
Qd3 {[%clk 0:00:09]} 35... Qc4 {[%clk 0:00:15.9]} 36. Qf5+ {[%clk 0:00:09.7]}
36... Kc7 {[%clk 0:00:16.5]} 37. Bxe5 {[%clk 0:00:07.9]} 37... dxe5 {[%clk
0:00:12.9]} 38. Qxe5+ {[%clk 0:00:09]} 38... Kb6 {[%clk 0:00:14.4]} 39. Qd6+
{[%clk 0:00:07]} 39... Qc6 {[%clk 0:00:15.5]} 40. Qb4 {[%clk 0:00:07.8]} 40...
Rfd8 {[%clk 0:00:15.1]} 41. a4 {[%clk 0:00:08.8]} 41... Rd5 {[%clk 0:00:16.3]}
42. Qe7 {[%clk 0:00:08.2]} 42... Rf5 {[%clk 0:00:13]} 43. Rxb5+ {[%clk
0:00:05.8]} 43... Rxb5 {[%clk 0:00:13.6]} 44. axb5 {[%clk 0:00:06.9]} 44... Qd5
{[%clk 0:00:10.9]} 45. Qb4 {[%clk 0:00:02.6]} 45... Rg8 {[%clk 0:00:10.3]} 46.
Qa4 {[%clk 0:00:03.3]} 46... Rg1+ {[%clk 0:00:10]} 47. Rxg1 {[%clk 0:00:03.1]}
47... Qxf3+ {[%clk 0:00:11.4]} 48. Rg2 {[%clk 0:00:05]} 48... Qh3+ {[%clk
0:00:12.7]} 49. Rh2 {[%clk 0:00:05.5]} 49... Qf1# {[%clk 0:00:14.3]} 0-1

[Event "*** Titled Tuesday Blitz"]
[Site "Chess.com"]
[Date "2019.09.03"]
[Round "2"]
[White "leschebaza"]
[Black "vova-79"]
[Result "1/2-1/2"]
[WhiteElo "2168"]
[BlackElo "2397"]
[TimeControl "180+2"]
[EndTime "15:24:40 PDT"]
[Termination "Game drawn by repetition"]

1. e4 {[%clk 0:03:01.9]} 1... e6 {[%clk 0:02:59.6]} 2. d4 {[%clk 0:03:02.9]}
2... d5 {[%clk 0:02:59.7]} 3. Nd2 {[%clk 0:03:04.3]} 3... c5 {[%clk 0:02:56.8]}
4. Ngf3 {[%clk 0:03:03.7]} 4... cxd4 {[%clk 0:02:53.6]} 5. Nxd4 {[%clk
0:03:04.6]} 5... Nf6 {[%clk 0:02:52]} 6. Bb5+ {[%clk 0:03:04.3]} 6... Bd7 {[%clk
0:02:19]} 7. Bxd7+ {[%clk 0:03:04.4]} 7... Qxd7 {[%clk 0:02:17.9]} 8. exd5
{[%clk 0:03:04.5]} 8... Qxd5 {[%clk 0:02:16.1]} 9. N4f3 {[%clk 0:02:58.4]} 9...
Nc6 {[%clk 0:02:13.2]} 10. O-O {[%clk 0:02:59.7]} 10... Be7 {[%clk 0:02:09.2]}
11. Nb3 {[%clk 0:03:00.8]} 11... O-O {[%clk 0:02:07.3]} 12. Be3 {[%clk
0:03:00.2]} 12... Rfd8 {[%clk 0:02:04.7]} 13. Qxd5 {[%clk 0:02:56.7]} 13... Nxd5
{[%clk 0:02:04.2]} 14. Bc5 {[%clk 0:02:56.7]} 14... Bf6 {[%clk 0:02:03.8]} 15.
c3 {[%clk 0:02:57.9]} 15... b6 {[%clk 0:02:03.8]} 16. Bd4 {[%clk 0:02:43.5]}
16... Nxd4 {[%clk 0:02:01]} 17. Nbxd4 {[%clk 0:02:44.5]} 17... Rac8 {[%clk
0:01:51.2]} 18. a4 {[%clk 0:02:45]} 18... a6 {[%clk 0:01:48.4]} 19. h3 {[%clk
0:02:42.8]} 19... g6 {[%clk 0:01:48.1]} 20. Rfe1 {[%clk 0:02:41.9]} 20... Nf4
{[%clk 0:01:48.3]} 21. Red1 {[%clk 0:02:31.8]} 21... Rd7 {[%clk 0:01:42.5]} 22.
a5 {[%clk 0:02:17.3]} 22... b5 {[%clk 0:01:22.7]} 23. Nc2 {[%clk 0:02:14.9]}
23... Ra7 {[%clk 0:01:05.7]} 24. Nb4 {[%clk 0:02:13.7]} 24... Be7 {[%clk
0:01:01.9]} 25. Ne5 {[%clk 0:02:07.1]} 25... Bxb4 {[%clk 0:00:58.3]} 26. cxb4
{[%clk 0:02:08.2]} 26... Nd5 {[%clk 0:00:58.7]} 27. Rd4 {[%clk 0:01:55]} 27...
Rc2 {[%clk 0:00:55.5]} 28. Nd3 {[%clk 0:01:53.4]} 28... Rc4 {[%clk 0:00:50.6]}
29. Rxc4 {[%clk 0:01:46.7]} 29... bxc4 {[%clk 0:00:52.5]} 30. Ne5 {[%clk
0:01:43.7]} 30... Nxb4 {[%clk 0:00:43.3]} 31. Nxc4 {[%clk 0:01:44.6]} 31... Nd5
{[%clk 0:00:44.2]} 32. Nb6 {[%clk 0:01:43.4]} 32... Rb7 {[%clk 0:00:42]} 33.
Nxd5 {[%clk 0:01:40.7]} 33... exd5 {[%clk 0:00:42]} 34. Ra2 {[%clk 0:01:31]}
34... Kg7 {[%clk 0:00:35.9]} 35. Kf1 {[%clk 0:01:32.2]} 35... Kf6 {[%clk
0:00:36.5]} 36. Ke2 {[%clk 0:01:33.6]} 36... Ke5 {[%clk 0:00:27]} 37. Kd3 {[%clk
0:01:32.4]} 37... Rb3+ {[%clk 0:00:22.5]} 38. Kd2 {[%clk 0:01:32.9]} 38... Kd4
{[%clk 0:00:18.5]} 39. Kc2 {[%clk 0:01:33.8]} 39... Rb7 {[%clk 0:00:17.4]} 40.
Ra3 {[%clk 0:01:29.5]} 40... Rb5 {[%clk 0:00:13.5]} 41. h4 {[%clk 0:01:22.2]}
41... h5 {[%clk 0:00:13.4]} 42. Rf3 {[%clk 0:01:13.9]} 42... Rb7 {[%clk
0:00:10.5]} 43. Ra3 {[%clk 0:01:12.1]} 43... Ke4 {[%clk 0:00:10.2]} 44. Re3+
{[%clk 0:01:00.1]} 44... Kd4 {[%clk 0:00:10.6]} 45. Rd3+ {[%clk 0:01:01.2]}
45... Kc5 {[%clk 0:00:10.9]} 46. Rc3+ {[%clk 0:00:58.2]} 46... Kd6 {[%clk
0:00:12.4]} 47. Ra3 {[%clk 0:00:44.7]} 47... Rb4 {[%clk 0:00:12.1]} 48. g3
{[%clk 0:00:43.9]} 48... f5 {[%clk 0:00:11.9]} 49. Kc3 {[%clk 0:00:38.8]} 49...
Rc4+ {[%clk 0:00:10.3]} 50. Kd3 {[%clk 0:00:38.4]} 50... Rb4 {[%clk 0:00:11.1]}
51. Kc3 {[%clk 0:00:39.5]} 51... Re4 {[%clk 0:00:11]} 52. Rb3 {[%clk 0:00:37]}
52... Rc4+ {[%clk 0:00:11.1]} 53. Kd3 {[%clk 0:00:36.7]} 53... Rc6 {[%clk
0:00:13]} 54. Kd4 {[%clk 0:00:35.2]} 54... Rc4+ {[%clk 0:00:12.9]} 55. Kd3
{[%clk 0:00:36.3]} 55... Rc6 {[%clk 0:00:14.4]} 56. Kd4 {[%clk 0:00:37.1]} 56...
Rc4+ {[%clk 0:00:14.8]} 57. Kd3 {[%clk 0:00:38.2]} 1/2-1/2